Workbook

Sheet Лист1
A1: Приложение № 2 к муниципальной программе Североуральского городского округа «Развитие жилищно-коммунального хозяйства и транспортного обслуживания населения, повышение энергетической эффективности и охрана окружающей среды в Североуральском городском округе» на 2014-2020 годы
A2: План мероприятий
A3: по выполнению муниципальной программы Североуральского городского округа
A4: «Развитие жилищно-коммунального хозяйства и транспортного обслуживания населения,
A5: повышение энергетической эффективности и охрана окружающей среды в Североуральском городском округе» на 2014-2020 годы
A7: № строки | B7: Наименование мероприятия/ Источники расходов на финансирование | C7: Объем расходов на выполнение мероприятия за счет всех источников ресурсного обеспечения, тыс. руб. | K7: Номер строки целевых показателей, на достижение которых направлены мероприятия
C8: Всего | D8: первый год | E8: второй год | F8: третий год | G8: четвертый год | H8: пятый год | I8: шестой год | J8: седьмой год
B9: ВСЕГО по муниципальной программе, в том числе: | C9: =C22+C72+C119+C140+C164+C200+C236+C254 -> 604,020.8 | D9: =D22+D72+D119+D140+D164+D200+D236+D254 -> 129,381.8 | E9: =E22+E72+E119+E140+E164+E200+E236+E254 -> 86,985.5 | F9: 56,041.5 | G9: 82,903.0 | H9: 82,903.0 | I9: 82,903.0 | J9: 82,903.0
B10: местный бюджет | C10: =C24+C73+C120+C141+C167+C201+C237+C256 -> 563,771.5 | D10: =D24+D73+D120+D141+D167+D201+D237+D256 -> 89,534.5 | E10: =E24+E73+E120+E141+E167+E201+E237+E256 -> 86,918.5 | F10: 55,974.5 | G10: 82,836.0 | H10: 82,836.0 | I10: 82,836.0 | J10: 82,836.0
B11: областной бюджет | C11: =C74+C142+C165+C255 -> 14,576.0 | D11: =D74+D142+D165+D255 -> 14,174.0 | E11: =E74+E142+E165+E255 -> 67.0 | F11: 67.0 | G11: 67.0 | H11: 67.0 | I11: 67.0 | J11: 67.0
B12: внебюджетные источники | C12: =C75+C143+C166 -> 25,673.3 | D12: 25,673.3 | E12: 0.0 | F12: 0.0 | G12: 0.0 | H12: 0.0 | I12: 0.0 | J12: 0.0
B13: Капитальные вложения | C13: =C26+C77+C122+C145+C169+C203+C239+C258 -> 271,650.9 | D13: =D26+D77+D122+D145+D169+D203+D239+D258 -> 82,127.0 | E13: =E26+E77+E122+E145+E169+E203+E239+E258 -> 39,950.4 | F13: 8,425.5 | G13: 35,287.0 | H13: 35,287.0 | I13: 35,287.0 | J13: 35,287.0
B14: местный бюджет | C14: =D14+E14+F14+G14+H14+I14+J14 -> 232,033.4 | D14: =D27+D78+D123+D146+D170+D204+D240+D259 -> 42,509.5 | E14: =E27+E78+E123+E146+E170+E204+E240+E259 -> 39,950.4 | F14: 8,425.5 | G14: 35,287.0 | H14: 35,287.0 | I14: 35,287.0 | J14: 35,287.0
B15: областной бюджет | C15: =C79+C147 -> 13,944.2 | D15: =D79+D147 -> 13,944.2 | E15: =E79+E147 -> 0.0 | F15: 0.0 | G15: 0.0 | H15: 0.0 | I15: 0.0 | J15: 0.0
B16: внебюджетные источники | C16: =C80+C148 -> 25,673.3 | D16: =D80+D148 -> 25,673.3 | E16: =E80+E148 -> 0.0 | F16: 0.0 | G16: 0.0 | H16: 0.0 | I16: 0.0 | J16: 0.0
B17: Прочие нужды | C17: =SUM(C18:C19) -> 332,369.9 | D17: =SUM(D18:D19) -> 47,254.8 | E17: =SUM(E18:E19) -> 47,035.1 | F17: 47,616.0 | G17: 47,616.0 | H17: 47,616.0 | I17: 47,616.0 | J17: 47,616.0
B18: местный бюджет | C18: =SUM(D18:J18) -> 331,738.1 | D18: =D40+D95+D132+D162+D213+D249+D269+D181 -> 47,025.0 | E18: =E40+E95+E132+E162+E213+E249+E269+E181 -> 46,968.1 | F18: 47,549.0 | G18: 47,549.0 | H18: 47,549.0 | I18: 47,549.0 | J18: 47,549.0
B19: областной бюджет | C19: =SUM(D19:J19) -> 631.8 | D19: =D268 -> 229.8 | E19: =E268 -> 67.0 | F19: 67.0 | G19: 67.0 | H19: 67.0 | I19: 67.0 | J19: 67.0
B20: внебюджетные источники | C20: =C96 -> 0.0 | D20: 0.0 | E20: 0.0 | F20: 0.0 | G20: 0.0 | H20: 0.0 | I20: 0.0 | J20: 0.0
A21: Подпрограмма 1: Комплексное благоустройство территории Североуральского городского округа
B22: Всего по подпрограмме 1, | C22: =SUM(C24) -> 176,827.7 | D22: =SUM(D24) -> 20,579.0 | E22: =SUM(E24) -> 22,806.2 | F22: 26,688.5 | G22: 26,688.5 | H22: 26,688.5 | I22: 26,688.5 | J22: 26,688.5
B23: в том числе:
B24: местный бюджет | C24: =SUM(D24:J24) -> 176,827.7 | D24: =SUM(D27+D40) -> 20,579.0 | E24: =SUM(E27+E40) -> 22,806.2 | F24: 26,688.5 | G24: 26,688.5 | H24: 26,688.5 | I24: 26,688.5 | J24: 26,688.5
A25: 1. Капитальные вложения
B26: Всего по направлению «Капитальные вложения» всего, в том числе | C26: =SUM(D26:J26) -> 36,447.7 | D26: =SUM(D27) -> 2,200.0 | E26: 2,120.2 | F26: 6,425.5 | G26: 6,425.5 | H26: 6,425.5 | I26: 6,425.5 | J26: 6,425.5
B27: местный бюджет | C27: =SUM(D27:J27) -> 36,447.7 | D27: =SUM(D37) -> 2,200.0 | E27: =SUM(E37) -> 2,120.2 | F27: 6,425.5 | G27: 6,425.5 | H27: 6,425.5 | I27: 6,425.5 | J27: 6,425.5
A28: 1.1. Бюджетные инвестиции в объекты капитального строительства
B29: Бюджетные инвестиции в объекты капитального строительства всего, в том числе | C29: 0 | D29: 0 | E29: 0 | F29: 0 | G29: 0 | H29: 0 | I29: 0 | J29: 0
B30: местный бюджет | C30: 0 | D30: 0 | E30: 0 | F30: 0 | G30: 0 | H30: 0 | I30: 0 | J30: 0
A31: 1.2. Иные капитальные вложения
B32: Всего | C32: 0 | D32: 0 | E32: 0 | F32: 0 | G32: 0 | H32: 0 | I32: 0 | J32: 0
B34: местный бюджет | C34: 0 | D34: 0 | E34: 0 | F34: 0 | G34: 0 | H34: 0 | I34: 0 | J34: 0
A35: Мероприятие 1 Благоустройство дворовых территорий Североуральского городского округа
B36: Всего, из них | C36: =SUM(D36:J36) -> 36,447.7 | D36: =SUM(D37) -> 2,200.0 | E36: 2,120.2 | F36: 6,425.5 | G36: 6,425.5 | H36: 6,425.5 | I36: 6,425.5 | J36: 6,425.5 | K36: 4
B37: местный бюджет | C37: =SUM(D37:J37) -> 36,447.7 | D37: 2,200.0 | E37: 2,120.2 | F37: 6,425.5 | G37: =SUM(F37) -> 6,425.5 | H37: =SUM(G37) -> 6,425.5 | I37: =SUM(H37) -> 6,425.5 | J37: =SUM(I37) -> 6,425.5
A38: 3. Прочие нужды
B39: Всего по направлению «Прочие нужды», всего, в том числе: | C39: =SUM(D39:J39) -> 140,380.0 | D39: =SUM(D40) -> 18,379.0 | E39: =SUM(E40) -> 20,686.0 | F39: 20,263.0 | G39: 20,263.0 | H39: 20,263.0 | I39: 20,263.0 | J39: 20,263.0
B40: местный бюджет | C40: =SUM(D40:J40) -> 140,380.0 | D40: =SUM(D43+D46+D49+D52) -> 18,379.0 | E40: 20,686.0 | F40: 20,263.0 | G40: 20,263.0 | H40: 20,263.0 | I40: 20,263.0 | J40: 20,263.0
A41: Мероприятие 2 - Уличное освещение
B42: Всего, из них | C42: =SUM(D42:J42) -> 90,499.0 | D42: =SUM(D43) -> 11,900.0 | E42: 13,000.0 | F42: 13,119.8 | G42: 13,119.8 | H42: 13,119.8 | I42: 13,119.8 | J42: 13,119.8 | K42: 7
B43: местный бюджет | C43: =SUM(D43:J43) -> 90,499.0 | D43: 11,900.0 | E43: 13,000.0 | F43: 13,119.8 | G43: =SUM(F43) -> 13,119.8 | H43: =SUM(G43) -> 13,119.8 | I43: =SUM(H43) -> 13,119.8 | J43: =SUM(I43) -> 13,119.8
A44: Мероприятие 3 - Озеленение (цветники, валка сухих деревьев)
B45: Всего, из них | C45: =SUM(D45:J45) -> 14,146.6 | D45: =SUM(D46) -> 1,294.2 | E45: 2,056.4 | F45: 2,159.2 | G45: 2,159.2 | H45: 2,159.2 | I45: 2,159.2 | J45: 2,159.2 | K45: 9
B46: местный бюджет | C46: =SUM(D46:J46) -> 14,146.6 | D46: 1,294.2 | E46: 2,056.4 | F46: 2,159.2 | G46: =SUM(F46) -> 2,159.2 | H46: =SUM(G46) -> 2,159.2 | I46: =SUM(H46) -> 2,159.2 | J46: =SUM(I46) -> 2,159.2
A47: Мероприятие 4 - Организация и содержание мест захоронения
B48: Всего, из них | C48: =SUM(D48:J48) -> 15,587.3 | D48: =SUM(D49) -> 1,995.0 | E48: 2,594.8 | F48: 2,199.5 | G48: 2,199.5 | H48: 2,199.5 | I48: 2,199.5 | J48: 2,199.5 | K48: 14
B49: местный бюджет | C49: =SUM(D49:J49) -> 15,587.3 | D49: 1,995.0 | E49: 2,594.8 | F49: 2,199.5 | G49: =SUM(F49) -> 2,199.5 | H49: =SUM(G49) -> 2,199.5 | I49: =SUM(H49) -> 2,199.5 | J49: =SUM(I49) -> 2,199.5
A50: Мероприятие 5 - Прочие мероприятия по благоустройству
B51: Всего, в том числе: | C51: =SUM(D51:J51) -> 20,147.1 | D51: =SUM(D52) -> 3,189.8 | E51: 3,034.8 | F51: =SUM(F52) -> 2,784.5 | G51: 2,784.5 | H51: 2,784.5 | I51: 2,784.5 | J51: 2,784.5
B52: местный бюджет | C52: =SUM(D52:J52) -> 20,147.1 | D52: =SUM(D55+D58+D61+D64+D67+D70) -> 3,189.8 | E52: 3,034.8 | F52: 2,784.5 | G52: =SUM(G55+G58+G61+G64+G67+G70) -> 2,784.5 | H52: 2,784.5 | I52: 2,784.5 | J52: 2,784.5
A53: - Содержание памятников
B54: Всего: | C54: =SUM(C55) -> 1082 | D54: =SUM(D55) -> 200.0 | E54: =SUM(E55) -> 0.0 | F54: 0 | G54: =SUM(G55) -> 220.5 | H54: 220.5 | I54: 220.5 | J54: 220.5 | K54: 15
B55: местный бюджет | C55: =SUM(D55:J55) -> 1082 | D55: 200.0 | E55: 0.0 | F55: 0.0 | G55: 220.5 | H55: =SUM(G55) -> 220.5 | I55: =SUM(H55) -> 220.5 | J55: =SUM(I55) -> 220.5
A56: - Проведение комплекса профилактических работ по уходу за объектами благоустройства
B57: Всего: | C57: =SUM(C58) -> 806.7 | D57: =SUM(D58) -> 674.3 | E57: =SUM(E58) -> 0 | F57: 0 | G57: 33.1 | H57: 33.1 | I57: 33.1 | J57: 33.1 | K57: 5
B58: местный бюджет | C58: =SUM(D58:J58) -> 806.7 | D58: 674.3 | E58: 0.0 | F58: 0.0 | G58: 33.1 | H58: =SUM(G58) -> 33.1 | I58: =SUM(H58) -> 33.1 | J58: =SUM(I58) -> 33.1
A59: - Регулирование численности безнадзорных животных
B60: Всего: | C60: =SUM(C61) -> 2705.2 | D60: =SUM(D61) -> 500.0 | E60: =SUM(E61) -> 0.0 | F60: 0 | G60: 551.3 | H60: 551.3 | I60: 551.3 | J60: 551.3 | K60: 11
B61: местный бюджет | C61: =SUM(D61:J61) -> 2705.2 | D61: 500.0 | E61: 0.0 | F61: 0.0 | G61: 551.3 | H61: =SUM(G61) -> 551.3 | I61: =SUM(H61) -> 551.3 | J61: =SUM(I61) -> 551.3
A62: - Содержание биоямы (скотомогильник)
B63: Всего: | C63: =SUM(C64) -> 378.8 | D63: =SUM(D64) -> 70.0 | E63: =SUM(E64) -> 0.0 | F63: 0.0 | G63: 77.2 | H63: 77.2 | I63: 77.2 | J63: 77.2 | K63: 13
B64: местный бюджет | C64: =SUM(D64:J64) -> 378.8 | D64: 70.0 | E64: 0.0 | F64: 0.0 | G64: 77.2 | H64: =SUM(G64) -> 77.2 | I64: =SUM(H64) -> 77.2 | J64: =SUM(I64) -> 77.2
A65: - Обустройство новогодних городков
B66: Всего: | C66: =SUM(C67) -> 9,118.7 | D66: =SUM(D67) -> 1,685.5 | E66: =SUM(E67) -> 0.0 | F66: 0.0 | G66: 1,858.3 | H66: 1,858.3 | I66: 1,858.3 | J66: 1,858.3 | K66: 5
B67: местный бюджет | C67: =SUM(D67:J67) -> 9,118.7 | D67: 1,685.5 | E67: 0.0 | F67: 0.0 | G67: 1,858.3 | H67: =SUM(G67) -> 1,858.3 | I67: =SUM(H67) -> 1,858.3 | J67: =SUM(I67) -> 1,858.3
A68: - Акарицидная обработка общественных мест
B69: Всего: | C69: =SUM(C70) -> 236.4 | D69: =SUM(D70) -> 60.0 | E69: =SUM(E70) -> 0.0 | F69: 0 | G69: 44.1 | H69: 44.1 | I69: 44.1 | J69: 44.1 | K69: 12
B70: местный бюджет | C70: =SUM(D70:J70) -> 236.4 | D70: 60.0 | E70: 0.0 | F70: 0.0 | G70: 44.1 | H70: =SUM(G70) -> 44.1 | I70: =SUM(H70) -> 44.1 | J70: =SUM(I70) -> 44.1
A71: Подпрограмма 2: Муниципальная программа по энергосбережению и повышению энергетической эффективности объектов Североуральского городского округа
B72: Всего по подпрограмме 2, в том числе | C72: =SUM(D72:J72) -> 35,061.5 | D72: =SUM(D73:D75) -> 5,915.0 | E72: =SUM(E73:E75) -> 6,467.5 | F72: 4,535.8 | G72: 4,535.8 | H72: 4,535.8 | I72: 4,535.8 | J72: 4,535.8
B73: местный бюджет | C73: =SUM(D73:J73) -> 35,061.5 | D73: =SUM(D78+D95) -> 5,915.0 | E73: 6,467.5 | F73: =F78+F95 -> 4,535.8 | G73: 4,535.8 | H73: 4,535.8 | I73: 4,535.8 | J73: 4,535.8
B74: областной бюджет | C74: =SUM(D74:J74) -> 0.0 | D74: =SUM(D79) -> 0.0 | E74: =SUM(E79) -> 0.0 | F74: 0.0 | G74: 0.0 | H74: 0.0 | I74: 0.0 | J74: 0.0
B75: внебюджетные источники | C75: =SUM(D75:J75) -> 0.0 | D75: =SUM(D80+D96) -> 0.0 | E75: 0.0 | F75: 0.0 | G75: 0.0 | H75: 0.0 | I75: 0.0 | J75: 0.0
A76: 1. Капитальные вложения
B77: Всего по направлению «Капитальные вложения», всего, в том числе | C77: =SUM(D77:J77) -> 14,431.0 | D77: =SUM(D78:D80) -> 431.0 | E77: =SUM(E78:E80) -> 4,000.0 | F77: 2,000.0 | G77: 2,000.0 | H77: 2,000.0 | I77: 2,000.0 | J77: 2,000.0
B78: местный бюджет | C78: =SUM(D78:J78) -> 14,431.0 | D78: =SUM(D85) -> 431.0 | E78: =SUM(E85) -> 4,000.0 | F78: 2,000.0 | G78: 2,000.0 | H78: 2,000.0 | I78: 2,000.0 | J78: 2,000.0
B79: областной бюджет | C79: =SUM(D79:J79) -> 0.0 | D79: =SUM(D86) -> 0.0 | E79: =SUM(E86) -> 0.0 | F79: 0.0 | G79: 0.0 | H79: 0.0 | I79: 0.0 | J79: 0.0
B80: внебюджетные источники | C80: =SUM(D80:J80) -> 0.0 | D80: =SUM(D87) -> 0.0 | E80: =SUM(E87) -> 0.0 | F80: 0.0 | G80: 0.0 | H80: 0.0 | I80: 0.0 | J80: 0.0
A81: 1.1. Бюджетные инвестиции в объекты капитального строительства
B82: Бюджетные инвестиции в объекты капитального строительства всего | C82: 0 | D82: 0 | E82: 0 | F82: 0 | G82: 0 | H82: 0 | I82: 0 | J82: 0
A83: 1.2. Иные капитальные вложения
B84: Всего, в том числе | C84: =SUM(C85:C87) -> 14,431.0 | D84: =SUM(D85:D87) -> 431.0 | E84: =SUM(E85:E87) -> 4,000.0 | F84: 2,000.0 | G84: 2,000.0 | H84: 2,000.0 | I84: 2,000.0 | J84: 2,000.0
B85: местный бюджет | C85: =SUM(D85:J85) -> 14,431.0 | D85: =SUM(D90) -> 431.0 | E85: =SUM(E90) -> 4,000.0 | F85: 2,000.0 | G85: 2,000.0 | H85: 2,000.0 | I85: 2,000.0 | J85: 2,000.0
B86: областной бюджет | C86: =SUM(D86:J86) -> 0.0 | D86: =SUM(D91) -> 0.0 | E86: =SUM(E91) -> 0.0 | F86: 0.0 | G86: 0.0 | H86: 0.0 | I86: 0.0 | J86: 0.0
B87: внебюджетные источники | C87: =SUM(D87:J87) -> 0.0 | D87: =SUM(D92) -> 0.0 | E87: =SUM(E92) -> 0.0 | F87: 0.0 | G87: 0.0 | H87: 0.0 | I87: 0.0 | J87: 0.0
A88: Мероприятие 6- Реконструкция, модернизация водопроводных сетей, сетей системы водоотведения с заменой (без замены) оборудования с более высоким КПД, установка регулируемого привода, тепловых сетей с использованием энергетически эффективных технологий по тепловой изоляции, восстановление тепловой изоляции с применением эффективных технологий
B89: Всего, из них | C89: =SUM(C90:C92) -> 14,431.0 | D89: =SUM(D90:D92) -> 431.0 | E89: =SUM(E90:E92) -> 4,000.0 | F89: 2,000.0 | G89: 2,000.0 | H89: 2,000.0 | I89: 2,000.0 | J89: 2,000.0 | K89: 27
B90: местный бюджет | C90: =SUM(D90:J90) -> 14,431.0 | D90: 431.0 | E90: 4,000.0 | F90: 2,000.0 | G90: =SUM(F90) -> 2,000.0 | H90: 2,000.0 | I90: 2,000.0 | J90: 2,000.0
B91: областной бюджет | C91: =SUM(D91:J91) -> 0.0 | D91: 0.0 | E91: 0.0 | F91: =SUM(E91*1.05) -> 0.0 | G91: 0.0 | H91: 0.0 | I91: 0.0 | J91: 0.0
B92: внебюджетные источники | C92: =SUM(D92:J92) -> 0.0 | D92: 0.0 | E92: 0.0 | F92: 0.0 | G92: =SUM(F92) -> 0.0 | H92: =SUM(G92) -> 0.0 | I92: =SUM(H92) -> 0.0 | J92: =SUM(I92) -> 0.0
A93: 3. Прочие нужды
B94: Всего по направлению «Прочие нужды», всего, в том числе: | C94: =SUM(D94:J94) -> 20,630.5 | D94: =SUM(D95:D96) -> 5,484.0 | E94: =SUM(E95:E96) -> 2,467.5 | F94: 2,535.8 | G94: 2,535.8 | H94: 2,535.8 | I94: 2,535.8 | J94: 2,535.8
B95: местный бюджет | C95: =SUM(D95:J95) -> 20,630.5 | D95: =SUM(D99+D110+D114+D117) -> 5,484.0 | E95: 2,467.5 | F95: 2,535.8 | G95: 2,535.8 | H95: 2,535.8 | I95: 2,535.8 | J95: 2,535.8
B96: внебюджетные источники | C96: =SUM(D96:J96) -> 0.0 | D96: =SUM(D100+D107+D111) -> 0.0 | E96: 0.0 | F96: 0.0 | G96: 0.0 | H96: 0.0 | I96: 0.0 | J96: 0.0
A97: Мероприятие 7 - Оснащение зданий (строений, сооружений), находящихся в муниципальной собственности, многоквартирных жилых домов, жилых помещений, квартир приборами учета используемых энергетических ресурсов, в том числе разработка проектно-сметной документации
B98: всего, в том числе: | C98: =SUM(D98:J98) -> 3,794.0 | D98: =SUM(D99:D100) -> 1,200.0 | E98: 415.0 | F98: 435.8 | G98: 435.8 | H98: 435.8 | I98: 435.8 | J98: 435.8 | K98: 21,22,23,24
B99: местный бюджет | C99: =SUM(D99:J99) -> 3,794.0 | D99: =SUM(D104) -> 1,200.0 | E99: =SUM(E104) -> 415.0 | F99: 435.8 | G99: 435.8 | H99: 435.8 | I99: 435.8 | J99: 435.8
B100: внебюджетные источники | C100: =SUM(D100:J100) -> 0.0 | D100: =SUM(D101) -> 0.0 | E100: =SUM(E101) -> 0.0 | F100: 0.0 | G100: 0.0 | H100: 0.0 | I100: 0.0 | J100: 0.0
B101: внебюджетные источники | C101: =SUM(D101:J101) -> 0.0 | D101: 0.0 | E101: 0.0 | F101: 0.0 | G101: =SUM(F101) -> 0.0 | H101: =SUM(G101) -> 0.0 | I101: =SUM(H101) -> 0.0 | J101: =SUM(I101) -> 0.0
A102: - Оснащение жилых домов (субсидии)
B103: Всего: | C103: =SUM(C104) -> 3,794.0 | D103: 1,200.0 | E103: 415.0 | F103: 435.8 | G103: 435.8 | H103: 435.8 | I103: 435.8 | J103: 435.8
B104: местный бюджет | C104: =SUM(D104:J104) -> 3,794.0 | D104: 1,200.0 | E104: 415.0 | F104: 435.8 | G104: =SUM(F104) -> 435.8 | H104: =SUM(G104) -> 435.8 | I104: =SUM(H104) -> 435.8 | J104: =SUM(I104) -> 435.8
A105: Мероприятие 8 - Проведение энергетических обследований муниципальных зданий (строений, сооружений) бюджетных учреждений Североуральского городского округа
B106: всего, из них: | C106: =SUM(D106:J106) -> 0.0 | D106: =SUM(D107) -> 0.0 | E106: =SUM(E107) -> 0.0 | F106: 0.0 | G106: 0.0 | H106: 0.0 | I106: 0.0 | J106: 0.0 | K106: 19
B107: внебюджетные источники | C107: =D107+E107+F107+G107+H107+I107+J107 -> 0.0 | D107: 0.0 | E107: 0.0 | F107: 0.0 | G107: 0.0 | H107: =SUM(G107) -> 0.0 | I107: =SUM(H107) -> 0.0 | J107: =SUM(I107) -> 0.0
A108: Мероприятие 9 - Закупка и установка осветительного оборудования с заменой неэффективного на энергосберегающее, в том числе замена ламп накаливания на энергосберегающие, модернизация сетей уличного освещения, проектно-сметные работы, экспертиза проектно-сметной документации
B109: всего, из них: | C109: =D109+E109+F109+G109+H109+I109+J109 -> 14,642.0 | D109: =SUM(D110:D111) -> 2,142.0 | E109: =SUM(E110:E111) -> 2,000.0 | F109: 2,100.0 | G109: 2,100.0 | H109: 2,100.0 | I109: 2,100.0 | J109: 2,100.0 | K109: 26
B110: местный бюджет | C110: =D110+E110 -> 4,142.0 | D110: 2,142.0 | E110: 2,000.0 | F110: 2,100.0 | G110: =SUM(F110) -> 2,100.0 | H110: 2,100.0 | I110: 2,100.0 | J110: 2,100.0
B111: внебюджетные источники | C111: =D111+E111 -> 0.0 | D111: 0.0 | E111: 0.0 | F111: 0.0 | G111: 0.0 | H111: 0.0 | I111: 0.0 | J111: 0.0
A112: Мероприятие 10 - Разработка схемы водоснабжения Североуральского городского округа
B113: всего, из них: | C113: =SUM(D113:J113) -> 2,092.0 | D113: =SUM(D114) -> 2,092.0 | E113: =SUM(E114) -> 0.0 | F113: 0.0 | G113: 0.0 | H113: 0.0 | I113: 0.0 | J113: 0.0 | K113: 28
B114: местный бюджет | C114: =SUM(D114:J114) -> 2,092.0 | D114: 2,092.0 | E114: 0.0 | F114: 0.0 | G114: =SUM(F114) -> 0.0 | H114: =SUM(G114) -> 0.0 | I114: =SUM(H114) -> 0.0 | J114: =SUM(I114) -> 0.0
A115: Мероприятие 11 - Прочие мероприятия (оформление актов выбора трассы под строительство водопроводов, сетей уличного освещения, газопроводов и т.п.)
B116: всего, из них: | C116: =SUM(D116:J116) -> 102.5 | D116: =SUM(D117) -> 50.0 | E116: =SUM(E117) -> 52.5 | F116: 0.0 | G116: 0.0 | H116: 0.0 | I116: 0.0 | J116: 0.0 | K116: 29
B117: местный бюджет | C117: =SUM(D117:J117) -> 102.5 | D117: 50.0 | E117: 52.5 | F117: 0.0 | G117: =SUM(F117) -> 0.0 | H117: =SUM(G117) -> 0.0 | I117: =SUM(H117) -> 0.0 | J117: =SUM(I117) -> 0.0
A118: Подпрограмма 3: Развитие лесного хозяйства на территории Североуральского городского округа
B119: Всего по подпрограмме 1, всего, в том числе | C119: =SUM(C120:C120) -> 2,707.0 | D119: =SUM(D120) -> 1,513.0 | E119: =SUM(E120) -> 191.0 | F119: 200.6 | G119: 200.6 | H119: 200.6 | I119: 200.6 | J119: 200.6
B120: местный бюджет | C120: =SUM(D120:J120) -> 2,707.0 | D120: =SUM(D132) -> 1,513.0 | E120: =SUM(E132) -> 191.0 | F120: 200.6 | G120: 200.6 | H120: 200.6 | I120: 200.6 | J120: 200.6
A121: 1. Капитальные вложения
B122: Всего по направлению «Капитальные вложения», всего, в том числе | C122: 0 | D122: 0 | E122: 0 | F122: 0 | G122: 0 | H122: 0 | I122: 0 | J122: 0
B123: местный бюджет | C123: 0 | D123: 0 | E123: 0 | F123: 0 | G123: 0 | H123: 0 | I123: 0 | J123: 0
A124: 1.1. Бюджетные инвестиции в объекты капитального строительства
B125: Бюджетные инвестиции в объекты капитального строительства всего, в том числе: | C125: =SUM(C126) -> 0 | D125: =SUM(D126) -> 0 | E125: 0 | F125: 0 | G125: 0 | H125: 0 | I125: 0 | J125: 0
B126: местный бюджет | C126: 0 | D126: 0 | E126: 0 | F126: 0 | G126: 0 | H126: 0 | I126: 0 | J126: 0
A127: 1.2. Иные капитальные вложения
B128: Всего, в том числе: | C128: =SUM(A130) -> 0 | D128: 0 | E128: 0 | F128: 0 | G128: 0 | H128: 0 | I128: 0 | J128: 0
B129: местный бюджет | C129: 0 | D129: 0 | E129: 0 | F129: 0 | G129: 0 | H129: 0 | I129: 0 | J129: 0
A130: 3. Прочие нужды
B131: Всего, из них | C131: =SUM(C132:C132) -> 2,707.0 | D131: 1,513.0 | E131: 191.0 | F131: 200.6 | G131: 200.6 | H131: 200.6 | I131: 200.6 | J131: 200.6
B132: местный бюджет | C132: =SUM(D132:J132) -> 2,707.0 | D132: =SUM(D135) -> 1,513.0 | E132: =SUM(E135) -> 191.0 | F132: 200.6 | G132: 200.6 | H132: 200.6 | I132: 200.6 | J132: 200.6
A133: Мероприятие 12 - Развитие лесного хозяйства на территории Североуральского городского округа
B134: Всего, в том числе: | C134: =SUM(D134:J134) -> 2,707.0 | D134: =SUM(D135) -> 1,513.0 | E134: =SUM(E135) -> 191.0 | F134: 200.6 | G134: 200.6 | H134: 200.6 | I134: 200.6 | J134: 200.6 | K134: 33,34,36,38
B135: местный бюджет | C135: =SUM(D135:J135) -> 2,707.0 | D135: =SUM(D138) -> 1,513.0 | E135: =SUM(E138) -> 191.0 | F135: 200.6 | G135: 200.6 | H135: 200.6 | I135: 200.6 | J135: 200.6
A136: - Межевание городских лесов постановка на кадастровый учет
B137: Всего: | C137: =SUM(C138) -> 2,707.0 | D137: =SUM(D138) -> 1,513.0 | E137: =SUM(E138) -> 191.0 | F137: 200.6 | G137: 200.6 | H137: 200.6 | I137: 200.6 | J137: 200.6
B138: местный бюджет | C138: =SUM(D138:J138) -> 2,707.0 | D138: 1,513.0 | E138: 191.0 | F138: 200.6 | G138: =SUM(F138) -> 200.6 | H138: =SUM(G138) -> 200.6 | I138: =SUM(H138) -> 200.6 | J138: =SUM(I138) -> 200.6
A139: Подпрограмма 4 : Переселение граждан на территории Североуральского городского округа из аварийного жилищного фонда с учетом необходимости развития малоэтажного жилищного строительства
B140: Всего по подпрограмме 4, всего, в том числе | C140: =SUM(C141:C143) -> 220,772.2 | D140: =SUM(D141:D143) -> 79,496.0 | E140: 33,830.2 | F140: 0.0 | G140: 26861.5 | H140: 26861.5 | I140: 26861.5 | J140: 26861.5
B141: местный бюджет | C141: =SUM(D141:J141) -> 181,154.7 | D141: =SUM(D146) -> 39,878.5 | E141: =SUM(E146) -> 33,830.2 | F141: 0.0 | G141: 26861.5 | H141: 26861.5 | I141: 26861.5 | J141: 26861.5
B142: областной бюджет | C142: =SUM(D142:J142) -> 13,944.2 | D142: =SUM(D147) -> 13,944.2 | E142: =SUM(E147) -> 0.0 | F142: 0.0 | G142: 0.0 | H142: 0.0 | I142: 0.0 | J142: 0.0
B143: внебюджетные источники | C143: =SUM(D143:J143) -> 25,673.3 | D143: =SUM(D148) -> 25,673.3 | E143: =SUM(E148) -> 0.0 | F143: 0.0 | G143: 0.0 | H143: 0.0 | I143: 0.0 | J143: 0.0
A144: 1. Капитальные вложения
B145: Всего по направлению «Капитальные вложения», всего, в том числе | C145: =SUM(C146:C148) -> 220,772.2 | D145: =SUM(D146:D148) -> 79,496.0 | E145: =SUM(E146:E148) -> 33,830.2 | F145: 0.0 | G145: 26861.5 | H145: 26861.5 | I145: 26861.5 | J145: 26861.5
B146: местный бюджет | C146: =SUM(D146:J146) -> 181,154.7 | D146: =SUM(D151) -> 39,878.5 | E146: =SUM(E151) -> 33,830.2 | F146: 0.0 | G146: 26861.5 | H146: 26861.5 | I146: 26861.5 | J146: 26861.5
B147: областной бюджет | C147: =SUM(D147:J147) -> 13,944.2 | D147: =SUM(D152) -> 13,944.2 | E147: =SUM(E152) -> 0.0 | F147: 0.0 | G147: 0.0 | H147: 0.0 | I147: 0.0 | J147: 0.0
B148: внебюджетные источники | C148: =SUM(D148:J148) -> 25,673.3 | D148: =SUM(D153) -> 25,673.3 | E148: =SUM(E153) -> 0.0 | F148: 0.0 | G148: 0.0 | H148: 0.0 | I148: 0.0 | J148: 0.0
A149: Мероприятие 13 - Переселение граждан на территории Североуральского городского округа из аварийного жилищного фонда с учетом необходимости развития малоэтажного жилищного строительства
B150: Всего по направлению «Капитальные вложения», всего, в том числе | C150: 208,016.2 | D150: =SUM(D151:D153) -> 79,496.0 | E150: =SUM(E151:E153) -> 33,830.2 | F150: 0.0 | G150: 26861.5 | H150: 26861.5 | I150: 26861.5 | J150: 26861.5 | K150: 42,44,45
B151: местный бюджет | C151: 208,016.2 | D151: 39,878.5 | E151: 33,830.2 | F151: 0.0 | G151: 26,861.5 | H151: 26,861.5 | I151: 26,861.5 | J151: 26,861.5
B152: областной бюджет | C152: =SUM(D152:J152) -> 13,944.2 | D152: 13,944.2 | E152: 0.0 | F152: 0.0 | G152: 0 | H152: 0 | I152: 0 | J152: 0
B153: внебюджетные источники | C153: =SUM(D153:J153) -> 25,673.3 | D153: 25,673.3 | E153: 0.0 | F153: 0.0 | G153: 0 | H153: 0 | I153: 0 | J153: 0
A154: 1.1. Бюджетные инвестиции в объекты капитального строительства
B155: Бюджетные инвестиции в объекты капитального строительства всего, в том числе: | C155: =SUM(C156) -> 0 | D155: =SUM(D156) -> 0 | E155: 0 | F155: 0 | G155: 0 | H155: 0 | I155: 0 | J155: 0
B156: местный бюджет | C156: 0 | D156: 0 | E156: 0 | F156: 0 | G156: 0 | H156: 0 | I156: 0 | J156: 0
A157: 1.2. Иные капитальные вложения
B158: Всего, в том числе: | C158: 0 | D158: 0 | E158: 0 | F158: 0 | G158: 0 | H158: 0 | I158: 0 | J158: 0
B159: местный бюджет | C159: 0 | D159: 0 | E159: 0 | F159: 0 | G159: 0 | H159: 0 | I159: 0 | J159: 0
A160: 3 Прочие нужды
B161: Всего, в том числе: | C161: 0 | D161: 0 | E161: 0 | F161: 0 | G161: 0 | H161: 0 | I161: 0 | J161: 0
B162: местный бюджет | C162: 0 | D162: 0 | E162: 0 | F162: 0 | G162: 0 | H162: 0 | I162: 0 | J162: 0
A163: Подпрограмма 5 : Содержание и капитальный ремонт общего имущества муниципального жилищного фонда на территории Североуральского городского округа
B164: Всего по подпрограмме 5, в том числе | C164: =C165+C166+C167 -> 64,276.1 | D164: 7,892.0 | E164: 9,021.6 | F164: 9,472.5 | G164: 9,472.5 | H164: 9,472.5 | I164: 9,472.5 | J164: 9,472.5
B165: Областной бюджет | C165: =SUM(D165:J165) -> 0.0 | D165: =SUM(D179) -> 0.0 | E165: =SUM(E179) -> 0.0 | F165: 0.0 | G165: 0.0 | H165: 0.0 | I165: 0.0 | J165: 0.0
B166: федеральный бюджет (средства Фонда реформирования ЖКХ) | C166: =SUM(D166:J166) -> 0.0 | D166: =SUM(D180) -> 0.0 | E166: =SUM(E180) -> 0.0 | F166: 0.0 | G166: 0.0 | H166: 0.0 | I166: 0.0 | J166: 0.0
B167: местный бюджет | C167: =SUM(D167:J167) -> 64,276.1 | D167: =SUM(D181) -> 7,892.0 | E167: =SUM(E181) -> 9,021.6 | F167: 9,472.5 | G167: 9,472.5 | H167: 9,472.5 | I167: 9,472.5 | J167: 9,472.5
A168: 1. Капитальные вложения
B169: Всего по направлению «Капитальные вложения», всего, в том числе | C169: =SUM(C170) -> 0 | D169: =SUM(D170) -> 0 | E169: 0 | F169: 0 | G169: 0 | H169: 0 | I169: 0 | J169: 0
B170: местный бюджет | C170: 0 | D170: 0 | E170: 0 | F170: 0 | G170: 0 | H170: 0 | I170: 0 | J170: 0
A171: 1.1. Бюджетные инвестиции в объекты капитального строительства
B172: Бюджетные инвестиции в объекты капитального строительства всего, в том числе: | C172: =SUM(C173) -> 0 | D172: =SUM(D173) -> 0 | E172: 0 | F172: 0 | G172: 0 | H172: 0 | I172: 0 | J172: 0
B173: местный бюджет | C173: =SUM(D173:J173) -> 0 | D173: 0 | E173: 0 | F173: 0 | G173: 0 | H173: 0 | I173: 0 | J173: 0
A174: 1.2. Иные капитальные вложения
B175: Всего, в том числе: | C175: 0 | D175: =SUM(C173) -> 0 | E175: 0 | F175: 0 | G175: 0 | H175: 0 | I175: 0 | J175: 0
B176: местный бюджет | C176: =SUM(D176:J176) -> 0 | D176: 0 | E176: 0 | F176: 0 | G176: 0 | H176: 0 | I176: 0 | J176: 0
A177: 3 Прочие нужды
B178: Всего, в том числе: | C178: =SUM(C179:C181) -> 64,276.1 | D178: =SUM(D179:D181) -> 7,892.0 | E178: =SUM(E179:E181) -> 9,021.6 | F178: 9,472.5 | G178: 9,472.5 | H178: 9,472.5 | I178: 9,472.5 | J178: 9,472.5
B179: Областной бюджет | C179: =SUM(D179:J179) -> 0.0 | D179: =SUM(D197) -> 0.0 | E179: =SUM(E197) -> 0.0 | F179: 0.0 | G179: 0.0 | H179: 0.0 | I179: 0.0 | J179: 0.0
B180: федеральный бюджет (средства Фонда реформирования ЖКХ) | C180: =SUM(D180:J180) -> 0.0 | D180: =SUM(D198) -> 0.0 | E180: =SUM(E198) -> 0.0 | F180: 0.0 | G180: 0.0 | H180: 0.0 | I180: 0.0 | J180: 0.0
B181: местный бюджет | C181: =SUM(D181:J181) -> 64,276.1 | D181: =D184+D187+D190+D193+D196 -> 7,892.0 | E181: 9,021.6 | F181: 9,472.5 | G181: 9,472.5 | H181: 9,472.5 | I181: 9,472.5 | J181: 9,472.5
A182: Мероприятие 14 - Ремонт общего имущества и квартир, в которых проживают отдельные категории граждан муниципального жилищного фонда в целях приведения в состояние, отвечающее требованиям пожарной безопасности, санитарно-техническим и иным требованиям
B183: Всего, из них | C183: =SUM(C184) -> 7,039.6 | D183: =SUM(D184) -> 342.0 | E183: =SUM(E184) -> 1,081.6 | F183: 1,123.2 | G183: 1,123.2 | H183: 1,123.2 | I183: 1,123.2 | J183: 1,123.2 | K183: 49
B184: местный бюджет | C184: =SUM(D184:J184) -> 7,039.6 | D184: 342.0 | E184: 1,081.6 | F184: 1,123.2 | G184: =SUM(F184) -> 1,123.2 | H184: =SUM(G184) -> 1,123.2 | I184: =SUM(H184) -> 1,123.2 | J184: =SUM(I184) -> 1,123.2
A185: Мероприятие 15 - Компенсация выпадающих доходов организациям, предоставляющим населению жилищные услуги по тарифам, не обеспечивающим возмещение издержек, по содержанию лифтового хозяйства
B186: Всего, из них | C186: =SUM(D186:J186) -> 11,344.0 | D186: =SUM(D187) -> 1,500.0 | E186: =SUM(E187) -> 1,575.0 | F186: 1,653.8 | G186: 1,653.8 | H186: 1,653.8 | I186: 1,653.8 | J186: 1,653.8 | K186: 51
B187: местный бюджет | C187: =SUM(D187:J187) -> 11,344.0 | D187: 1,500.0 | E187: 1,575.0 | F187: 1,653.8 | G187: =SUM(F187) -> 1,653.8 | H187: =SUM(G187) -> 1,653.8 | I187: =SUM(H187) -> 1,653.8 | J187: =SUM(I187) -> 1,653.8
A188: Мероприятие 16 - Компенсация выпадающих доходов организациям, предоставляющим населению жилищные услуги по тарифам, не обеспечивающим возмещение издержек, по содержанию муниципального жилищного фонда поселка Покровск-Уральский
B189: Всего, из них | C189: =SUM(D189:J189) -> 7,562.5 | D189: =SUM(D190) -> 1,000.0 | E189: =SUM(E190) -> 1,050.0 | F189: 1,102.5 | G189: 1,102.5 | H189: 1,102.5 | I189: 1,102.5 | J189: 1,102.5 | K189: 51
B190: местный бюджет | C190: =SUM(D190:J190) -> 7,562.5 | D190: 1,000.0 | E190: 1,050.0 | F190: 1,102.5 | G190: =SUM(F190) -> 1,102.5 | H190: =SUM(G190) -> 1,102.5 | I190: =SUM(H190) -> 1,102.5 | J190: =SUM(I190) -> 1,102.5
A191: Мероприятие 17- Предоставление субсидий на удешевление стоимости услуг по содержанию и ремонту муниципального специализированного жилищного фонда (общежитий)
B192: Всего, из них | C192: =SUM(C193) -> 9,830.0 | D192: =SUM(D193) -> 1,300.0 | E192: =SUM(E193) -> 1,365.0 | F192: 1,433.0 | G192: 1,433.0 | H192: 1,433.0 | I192: 1,433.0 | J192: 1,433.0 | K192: 51
B193: местный бюджет | C193: =SUM(D193:J193) -> 9,830.0 | D193: 1,300.0 | E193: 1,365.0 | F193: 1,433.0 | G193: =SUM(F193) -> 1,433.0 | H193: =SUM(G193) -> 1,433.0 | I193: =SUM(H193) -> 1,433.0 | J193: =SUM(I193) -> 1,433.0
A194: Мероприятие 18- Проведение капитального ремонта общего имущества многоквартирных домов Североуральского городского округа
B195: Всего, из них | C195: =SUM(C196:C198) -> 28,500.0 | D195: =SUM(D196:D198) -> 3,750.0 | E195: =SUM(E196:E198) -> 3,950.0 | F195: 4,160.0 | G195: 4,160.0 | H195: 4,160.0 | I195: 4,160.0 | J195: 4,160.0 | K195: 50
B196: местный бюджет | C196: =SUM(D196:J196) -> 28,500.0 | D196: 3,750.0 | E196: 3,950.0 | F196: 4,160.0 | G196: 4,160.0 | H196: 4,160.0 | I196: 4,160.0 | J196: 4,160.0
B197: Областной бюджет | C197: =SUM(D197:J197) -> 0.0 | D197: 0.0 | E197: 0.0 | F197: 0.0 | G197: =F197*1 -> 0.0 | H197: =G197*1 -> 0.0 | I197: =H197*1 -> 0.0 | J197: =I197*1 -> 0.0
B198: федеральный бюджет (средства Фонда реформирования ЖКХ) | C198: =SUM(D198:J198) -> 0.0 | D198: 0.0 | E198: 0.0 | F198: 0.0 | G198: 0.0 | H198: 0.0 | I198: 0.0 | J198: 0.0
A199: Подпрограмма 6 : Комплексная экологическая программа Североуральского городского округа
B200: Всего по подпрограмме 6, в том числе | C200: =SUM(C201) -> 8,819.9 | D200: =SUM(D201) -> 1,205.0 | E200: =SUM(E201) -> 1,422.4 | F200: 1,238.5 | G200: 1,238.5 | H200: 1,238.5 | I200: 1,238.5 | J200: 1,238.5
B201: местный бюджет | C201: =SUM(D201:J201) -> 8,819.9 | D201: =SUM(D213) -> 1,205.0 | E201: =SUM(E213) -> 1,422.4 | F201: 1,238.5 | G201: 1,238.5 | H201: 1,238.5 | I201: 1,238.5 | J201: 1,238.5
A202: 1. Капитальные вложения
... 79 more rows

Sheet Лист2

Sheet Лист3
